[Event "15th Chennai GM Open 2025"]
[Site "Chennai"]
[Date "2025.01.09"]
[Round "10.5"]
[White "Mayank Chakraborty"]
[Black "Karthikeyan, P.."]
[Result "1/2-1/2"]
[ECO "B12"]
[WhiteElo "2457"]
[BlackElo "2286"]
[Annotator "TA"]
[PlyCount "79"]
[EventDate "2025.01.02"]
[EventType "swiss"]
[EventCountry "IND"]
[SourceTitle "playchess.com"]
[Source "ChessBase"]
[SourceQuality "1"]
[TimeControl "5400+30"]

{[%evp 9,79,0,3,-26,0,0,7,-20,-4,-4,0,-12,-8,0,-8,-7,-23,-93,-15,-115,-23,-28,-30,-105,-108,-160,-166,-161,-169,-176,-152,-186,-176,-176,-178,-204,-149,-172,-183,-186,-143,-169,-62,-104,-20,-61,-16,-18,-15,-19,0,0,-6,-8,0,0,0,0,0,0,0,0,0,0,22,28,21,22,15,0,15,0]} 1. e4 {[%emt 0:00:13]} c6 {[%emt 0:04:47]} 2. d4 {[%emt 0:00:00]} d5 {[%emt 0:00:26]} 3. f3 {[%emt 0:00:00]} e6 {[%emt 0:01:39]} 4. Nc3 {[%emt 0:00:02]} Bb4 {[%emt 0:00:05]} 5. Bd2 {[%emt 0:00:11]} Ne7 {[%emt 0:00:06]} 6. h4 {[%emt 0:00:36]} Nd7 {[%emt 0:00:11]} 7. Nce2 {[%emt 0:02:03]} Ba5 {[%emt 0:04:18]} 8. h5 {[%emt 0:09:45]} h6 {[%emt 0:00:20]} 9. e5 {[%emt 0:04:31]} c5 {[%emt 0:07:01]} 10. f4 {[%emt 0:07:01]} f6 {[%emt 0:08:57]} 11. Nf3 {[%emt 0:04:15]} O-O {[%emt 0:03:48]} 12. Bxa5 {[%emt 0:07:52]} Qxa5+ {[%emt 0:01:06]} 13. c3 {[%emt 0:02:29]} (13. Qd2 $11 Qxd2+ 14. Kxd2) 13... fxe5 {[%emt 0:11:12]} (13... cxd4 $1 $17 {Hoping for ...fxe5.} 14. exf6 Nxf6 15. Nexd4 Ng4) 14. fxe5 {[%emt 0:03:01]} (14. dxe5 $11 b5 15. g3) 14... Nb6 {[%emt 0:08:11]} (14... cxd4 $1 $17 15. b4 Qa3 16. cxd4 Qxb4+ 17. Kf2 Nb6) 15. dxc5 {[%emt 0:04:58]} Nc4 {[%emt 0:03:12]} 16. Ned4 {[%emt 0:14:26]} (16. b3 $1 $11 {keeps the balance.} Ne3 17. Qd2 Qxc5 18. Ned4) 16... Nxb2 $17 {[%emt 0:03:04]} 17. Qb3 {[%emt 0:00:30]} (17. Qd2 $142 Na4 18. Bd3) 17... Na4 {[%emt 0:00:54]} 18. Qb4 {[%emt 0:07:42]} Qxc5 {[%emt 0:00:58]} 19. Rc1 {[%emt 0:00:57]} Bd7 {[%emt 0:02:27]} 20. Qxb7 {[%emt 0:06:37]} Nb6 {[%emt 0:00:16]} (20... Qa3 21. Rc2 Nb6 (21... Nc5 $2 22. Qb4 $18) 22. Qa6 $17) 21. Qa6 {[%emt 0:00:47]} (21. Bd3 $2 Bc8 $19) 21... Nf5 {[%emt 0:01:56]} 22. Nb3 {[%emt 0:07:29]} Qe3+ {[%emt 0:01:30]} 23. Qe2 {[%emt 0:00:13] [#]} Qf4 $1 {[%emt 0:02:16]} 24. Qd2 {[%emt 0:02:10]} Qe4+ {[%emt 0:03:21]} (24... Qg3+ 25. Qf2 $11) 25. Kf2 {[%emt 0:00:08] [#]} Qg4 {[%emt 0:03:34]} ({Black should try} 25... Nh4 $1 $19 {[%cal Rh4f3]} 26. Nbd4 Nxf3 27. Nxf3 Qxe5) 26. Rh3 {[%emt 0:00:27]} Be8 {[%emt 0:13:31]} (26... Nh4 $17 {[%cal Ob6c4] And now ...Nc4! would win.} 27. Nbd4 Nc4 (27... Qxh5 28. Kg1 $17)) 27. Nc5 {[%emt 0:03:17]} Bf7 {[%emt 0:01:55][%cal Oa8c8] Threatening ...Rac8!} (27... Bxh5 28. Nxe6 $11) (27... Rc8 $5 28. Nxe6 Nd6 29. exd6 Qxe6 $15) 28. Kg1 {[%emt 0:01:46]} Rac8 {[%emt 0:03:28]} (28... Bxh5 $2 29. Nxe6 $18) 29. Qf2 {[%emt 0:00:36]} Nc4 {[%emt 0:02:50]} (29... Bxh5 $2 {too greedy.} 30. Nxe6 Rf7 (30... Rfe8 $2 31. Nh2 $18) 31. Nh2 $18) (29... Na4 {simplifies} 30. Nxa4 Qxa4 31. Qd2 Qg4) 30. Rb1 {[%emt 0:03:31]} Nce3 {[%emt 0:01:07]} (30... Bxh5 $2 {loses.} 31. Nxe6 Bf7 32. Nxf8 Rxf8 33. a4 $18 (33. Qxa7 Nce3 $18)) 31. Rb4 {[%emt 0:01:02]} Qxh3 {[%emt 0:00:53]} 32. gxh3 {[%emt 0:00:02]} Rxc5 {[%emt 0:00:02]} 33. Nd4 {[%emt 0:03:51] Nxf5 would now be deadly.} Rxc3 {[%emt 0:00:34] Strongly threatening ...Rc1.} 34. Rb3 {[%emt 0:02:19] Dancing on a razor blade.} Rc1 {[%emt 0:01:17]} 35. Rxe3 {[%emt 0:00:16]} Nxd4 {[%emt 0:01:37]} 36. Qd2 {[%emt 0:00:12]} Rxf1+ {[%emt 0:01:37]} 37. Kxf1 {[%emt 0:00:01]} Bxh5+ {[%emt 0:00:02]} 38. Kg2 {[%emt 0:00:07] The position is equal.} Nf5 {[%emt 0:01:06]} 39. Rb3 {[%emt 0:01:08]} d4 {[%emt 0:00:16]} 40. Rd3 {[%emt 0:02:10] Black had all chances to win.   Weighted Error Value: White=0.20 (precise) /Black=0.24 (precise) .  Mistake:       	White=4     	Black=4      Inaccurate:     	White=3     	Black=2      OK:         	White=10    	Black=13     Best:        	White=5     	Black=5      Strong:       	---       	Black=1} 1/2-1/2

[Event "15th Chennai GM Open 2025"]
[Site "Chennai"]
[Date "2025.01.09"]
[Round "10.6"]
[White "Slizhevsky, Alexander"]
[Black "Shahil Dey"]
[Result "1/2-1/2"]
[ECO "B43"]
[WhiteElo "2340"]
[BlackElo "2374"]
[Annotator "TA"]
[PlyCount "60"]
[EventDate "2025.01.02"]
[EventType "swiss"]
[EventCountry "IND"]
[SourceTitle "playchess.com"]
[Source "ChessBase"]
[SourceQuality "1"]
[TimeControl "5400+30"]

{[%evp 16,60,38,22,20,0,34,24,22,26,36,15,21,18,78,68,97,66,73,68,75,78,103,71,90,72,69,77,100,94,101,99,102,99,141,103,128,112,117,117,139,110,283,115,128,110,296]} 1. e4 {[%emt 0:01:34]} c5 {[%emt 0:07:05]} 2. Nf3 {[%emt 0:00:17]} e6 {[%emt 0:00:04]} 3. d4 {[%emt 0:00:14]} cxd4 {[%emt 0:00:04]} 4. Nxd4 {[%emt 0:00:04]} a6 {[%emt 0:00:09]} 5. Be2 {[%emt 0:00:34]} Nf6 {[%emt 0:00:05]} 6. Nc3 {[%emt 0:00:14]} Qc7 {[%emt 0:00:04]} 7. O-O {[%emt 0:00:53]} Bb4 {[%emt 0:00:03]} 8. Qd3 {[%emt 0:01:24]} Nc6 {[%emt 0:00:05]} 9. Bg5 {[%emt 0:03:20]} Be7 {[%emt 0:10:21][%cal Of6g4]} 10. Nxc6 {[%emt 0:02:20]} bxc6 {[%emt 0:00:12]} 11. f4 {[%emt 0:02:13]} d5 {[%emt 0:02:35]} 12. e5 {[%emt 0:00:36]} Ng8 {[%emt 0:00:47][%cal Bf6g8,Bg8e7,Be7d5,Bd5e3][%mdl 32]} 13. Bxe7 {[%emt 0:04:58]} Nxe7 {[%emt 0:00:10]} 14. Na4 {[%emt 0:04:22]} Qa5 {[%emt 0:17:15]} (14... a5 $11 {remains equal.}) 15. Qa3 $16 {[%emt 0:06:42] White has more active pieces. The black rooks are passive.} Rb8 {[%emt 0:10:35]} 16. Bd3 {[%emt 0:18:15]} Rb4 {[%emt 0:01:04]} 17. b3 {[%emt 0:01:52]} d4 {[%emt 0:05:56]} 18. Qc1 {[%emt 0:01:48]} Nd5 {[%emt 0:00:54]} 19. Nb2 {[%emt 0:02:34]} Ne3 {[%emt 0:01:51]} 20. Rf3 {[%emt 0:04:50][%cal Bf1f3,Bf3c3,Bc3c2][%mdl 32]} c5 {[%emt 0:10:04]} 21. Qe1 {[%emt 0:06:40] and a3 should not be overlooked} Qd8 {[%emt 0:02:15]} 22. c3 {[%emt 0:05:25]} Rb8 {[%emt 0:00:10]} 23. Nc4 {[%emt 0:01:13]} Nxc4 {[%emt 0:00:55]} 24. Bxc4 {[%emt 0:00:13][%cal Of4f5]} dxc3 {[%emt 0:02:24]} 25. Rxc3 {[%emt 0:03:04]} O-O {[%emt 0:00:58]} 26. Rd1 {[%emt 0:01:48]} Qa5 {[%emt 0:01:13]} 27. Rc2 {[%emt 0:01:49]} Qa3 {[%emt 0:02:48]} 28. Rd6 {[%emt 0:03:28]} Bb7 $2 {[%emt 0:01:18] [#]} (28... a5 $16) 29. Qc1 {[%emt 0:02:16]} (29. f5 $1 $18 {[%cal Rf5f6] and the rest is easy.} Bd5 30. Rxa6 (30. Bxa6 c4 $14)) 29... Qa5 {[%emt 0:00:28]} 30. Qd2 {[%emt 0:00:22]} Qa3 $2 {[%emt 0:00:33]} (30... Qb4 $16 {keeps fighting.}) 1/2-1/2

[Event "15th Chennai GM Open 2025"]
[Site "Chennai"]
[Date "2025.01.09"]
[Round "10.7"]
[White "Manish Anto Cristiano F"]
[Black "Siddharth, Jagadeesh"]
[Result "0-1"]
[ECO "C95"]
[WhiteElo "2328"]
[BlackElo "2515"]
[Annotator "TA"]
[PlyCount "78"]
[EventDate "2025.01.02"]
[EventType "swiss"]
[EventCountry "IND"]
[SourceTitle "playchess.com"]
[Source "ChessBase"]
[SourceQuality "1"]
[TimeControl "5400+30"]

{[%evp 26,77,27,38,30,27,23,12,16,24,13,0,37,-40,9,0,0,-39,-47,-36,-51,-38,-55,-37,-45,-88,-89,-78,-95,-88,-88,-84,-87,-80,-85,-106,-77,-76,-101,-97,-92,-102,-61,-177,-152,-167,-126,-159,-162,-125,-158,-769,-756,-29999]} 1. e4 {[%emt 0:00:03]} e5 {[%emt 0:01:03]} 2. Nf3 {[%emt 0:00:24]} Nc6 {[%emt 0:01:17]} 3. Bb5 {[%emt 0:00:11][%cal Bf1b5,Bb5a4,Ba4b3,Bb3c2,Bc2d3][%mdl 32]} a6 {[%emt 0:00:06]} 4. Ba4 {[%emt 0:00:08]} Nf6 {[%emt 0:00:04]} 5. O-O {[%emt 0:00:14]} Be7 {[%emt 0:00:05]} 6. Re1 {[%emt 0:00:09]} b5 {[%emt 0:00:05]} 7. Bb3 {[%emt 0:00:07]} d6 {[%emt 0:00:03]} 8. c3 {[%emt 0:00:27]} O-O {[%emt 0:00:07]} 9. h3 {[%emt 0:00:14]} Nb8 {[%emt 0:00:06]} 10. d4 {[%emt 0:00:08]} Nbd7 {[%emt 0:00:06]} 11. Nbd2 {[%emt 0:00:08][%cal Bb1d2,Bd2f1,Bf1g3][%mdl 32]} Bb7 {[%emt 0:00:05]} 12. Bc2 {[%emt 0:00:11]} Re8 {[%emt 0:00:05]} 13. Nf1 {[%emt 0:00:30]} Bf8 {[%emt 0:00:20]} 14. Ng3 {[%emt 0:00:11]} a5 {[%emt 0:00:04]} 15. Bd3 {[%emt 0:00:09]} b4 {[%emt 0:00:06]} 16. Bd2 {[%emt 0:00:05]} exd4 {[%emt 0:00:06]} 17. cxd4 {[%emt 0:00:07]} c5 {[%emt 0:00:05]} 18. Bf4 {[%emt 0:01:21]} g6 {[%emt 0:08:36]} 19. Qd2 {[%emt 0:03:46]} (19. dxc5 $14 dxc5 20. Bb5) 19... Qb6 {[%emt 0:11:35]} (19... cxd4 $15 20. Nxd4 Nc5) 20. Rad1 {[%emt 0:11:34]} cxd4 {[%emt 0:13:47]} 21. Bb1 {[%emt 0:06:32][%cal Of4h6]} Ne5 {[%emt 0:00:15]} 22. Qxd4 {[%emt 0:15:54]} Nxf3+ {[%emt 0:04:49]} 23. gxf3 {[%emt 0:00:06]} Qxd4 {[%emt 0:00:05]} 24. Rxd4 {[%emt 0:00:07]} d5 {[%emt 0:00:10]} 25. Rd2 {[%emt 0:03:23]} dxe4 {[%emt 0:13:45]} 26. Nxe4 {[%emt 0:08:20]} Nh5 $1 {[%emt 0:05:16][%cal Ob7e4] aiming for ...Bxe4!.} 27. Be3 {[%emt 0:03:25]} f5 $1 {[%emt 0:00:43]} 28. Nd6 {[%emt 0:01:01]} Bxd6 {[%emt 0:00:28]} 29. Rxd6 {[%emt 0:00:06] [#]} f4 $1 $36 {[%emt 0:05:43][%mdl 2048] Black has strong initiative.} 30. Bd2 {[%emt 0:02:42] [#]} Red8 $1 {[%emt 0:02:17]} (30... Rxe1+ 31. Bxe1 Bxf3 32. Bd2 $11) 31. Rxd8+ {[%emt 0:09:03]} Rxd8 {[%emt 0:00:21]} 32. Bc1 {[%emt 0:00:27]} Bxf3 {[%emt 0:00:07] Black is more active.} 33. Bc2 {[%emt 0:00:13]} Rd4 {[%emt 0:06:12]} 34. b3 {[%emt 0:02:35]} (34. Re5 $15) 34... Kf7 {[%emt 0:03:15]} 35. Re5 {[%emt 0:04:29]} Bd1 {[%emt 0:01:20]} 36. Rc5 {[%emt 0:00:20]} Bxc2 {[%emt 0:03:56]} 37. Rxc2 {[%emt 0:00:07]} Rd3 {[%emt 0:04:52]} 38. Kg2 $2 {[%emt 0:02:34]} (38. Bb2 $17) 38... f3+ $19 {[%emt 0:04:33]} 39. Kf1 {[%emt 0:00:33]} Rd1# {[%emt 0:00:07]} 0-1

[Event "15th Chennai GM Open 2025"]
[Site "Chennai"]
[Date "2025.01.09"]
[Round "10.8"]
[White "Rios Gomez, Cristhian Camilo"]
[Black "Setumadhav Yellumahanthi"]
[Result "1/2-1/2"]
[ECO "E36"]
[WhiteElo "2435"]
[BlackElo "2334"]
[Annotator "TA"]
[PlyCount "40"]
[EventDate "2025.01.02"]
[EventType "swiss"]
[EventCountry "IND"]
[SourceTitle "playchess.com"]
[Source "ChessBase"]
[SourceQuality "1"]
[TimeControl "5400+30"]

{[%evp 12,40,20,10,3,6,24,14,14,15,20,16,36,37,31,25,24,20,29,0,0,-58,-53,-131,0,0,0,-129,0,0,0]} 1. d4 {[%emt 0:00:02]} Nf6 {[%emt 0:00:48]} 2. c4 {[%emt 0:00:13]} e6 {[%emt 0:00:05]} 3. Nc3 {[%emt 0:00:08]} Bb4 {[%emt 0:00:06]} 4. Qc2 {[%emt 0:00:09]} d5 {[%emt 0:00:15]} 5. a3 {[%emt 0:00:11]} Bxc3+ {[%emt 0:00:20]} 6. Qxc3 {[%emt 0:00:08]} O-O {[%emt 0:00:32]} 7. Bg5 {[%emt 0:00:11]} dxc4 {[%emt 0:04:16]} 8. Qxc4 {[%emt 0:00:11]} h6 {[%emt 0:02:35]} 9. Bh4 {[%emt 0:00:48]} b6 {[%emt 0:00:28]} 10. Nf3 {[%emt 0:00:10]} Ba6 {[%emt 0:00:34]} 11. Qa4 {[%emt 0:00:11]} c5 {[%emt 0:02:40]} 12. dxc5 {[%emt 0:00:39]} bxc5 {[%emt 0:00:14]} 13. Rd1 {[%emt 0:00:30] Dodges Qd7} Qb6 {[%emt 0:02:30]} 14. Bxf6 {[%emt 0:00:13]} gxf6 {[%emt 0:00:02]} 15. Rd2 {[%emt 0:00:18]} Nc6 {[%emt 0:05:32]} 16. Qg4+ {[%emt 0:01:46]} (16. e3 $11 Bxf1 17. Rxf1 (17. Kxf1 Rad8 $11)) 16... Kh7 $1 $15 {[%emt 0:00:43]} 17. Qh4 {[%emt 0:01:26] [#]} (17. e3 $15) 17... Kg7 {[%emt 0:01:23]} (17... Rad8 $1 $17 {[%cal Rd8d2]} 18. Rxd8 (18. Qxf6 Rxd2 19. Kxd2 Nd4 $17) 18... Rxd8 19. Qxf6 Kg8) 18. Qg4+ {[%emt 0:00:18]} (18. Qg3+ $11 Kh7 19. Qh4) 18... Kh7 $17 {[%emt 0:00:37]} 19. Qh4 {[%emt 0:00:09] [#]} Kg7 {[%emt 0:00:13]} (19... Rad8 $1 $17 {[%cal Rd8d2] ...Rxd2 would now be deadly.} 20. Rxd8 (20. Qxf6 Rxd2 21. Kxd2 Qb3 $15) 20... Rxd8 21. Qxf6 Kg8) 20. Qg4+ $11 {[%emt 0:00:09]} Kh7 {[%emt 0:01:02]} 1/2-1/2

[Event "15th Chennai GM Open 2025"]
[Site "Chennai"]
[Date "2025.01.09"]
[Round "10.9"]
[White "Adireddy Arjun"]
[Black "Das, Sayantan"]
[Result "0-1"]
[ECO "A25"]
[WhiteElo "2326"]
[BlackElo "2434"]
[Annotator "TA"]
[PlyCount "64"]
[EventDate "2025.01.02"]
[EventType "swiss"]
[EventCountry "IND"]
[SourceTitle "playchess.com"]
[Source "ChessBase"]
[SourceQuality "1"]
[TimeControl "5400+30"]

{[%evp 14,64,27,20,42,20,27,-3,-8,-14,-8,-81,-76,-147,-155,-147,-152,-183,-172,-573,-570,-565,-555,-562,-558,-579,-576,-577,-564,-563,-552,-533,-528,-729,-708,-676,-447,-474,-471,-447,-396,-916,-762,-1143,-1129,-1055,-1052,-1495,-1443,-29973,-29972,-29993,-29994]} 1. c4 {[%emt 0:00:44]} e5 {[%emt 0:03:37]} 2. d3 {[%emt 0:00:09]} Nc6 {[%emt 0:00:54]} 3. Nf3 {[%emt 0:00:07]} f5 {[%emt 0:00:59]} 4. g3 {[%emt 0:02:35]} Nf6 {[%emt 0:00:46]} 5. Bg2 {[%emt 0:00:06]} Bb4+ {[%emt 0:00:59]} 6. Bd2 {[%emt 0:02:20]} a5 {[%emt 0:03:31]} 7. O-O {[%emt 0:01:28]} O-O {[%emt 0:02:40]} 8. Nc3 {[%emt 0:04:54]} Bxc3 {[%emt 0:01:30]} 9. Bxc3 {[%emt 0:01:26]} d6 {[%emt 0:00:08]} 10. Ne1 {[%emt 0:10:44]} f4 {[%emt 0:07:26] The position is equal.} 11. Nc2 {[%emt 0:02:15]} Qe8 {[%emt 0:01:29]} 12. Qd2 {[%emt 0:22:33]} (12. e3 $11 {remains equal.}) 12... Qh5 $1 $17 {[%emt 0:03:42]} 13. gxf4 {[%emt 0:15:35]} (13. Qe1 $142) 13... Ng4 $1 {[%emt 0:08:07][%csl Gg4,LRf4,LRh2][%cal Rh5h2]} (13... Bh3 $6 14. f3 $11) 14. h3 {[%emt 0:00:14]} Nh6 {[%emt 0:00:05] A dynamic duo of knights.} 15. fxe5 {[%emt 0:07:18]} Bxh3 $40 {[%emt 0:03:26][%mdl 128] Black has strong attack.} 16. f3 $2 {[%emt 0:02:04]} (16. Bxh3 Qxh3 17. Qe3 Qg4+ 18. Qg3 Qxe2 (18... Nxe5 19. Qxg4 Nhxg4 20. f3 $14) 19. Ne3 (19. exd6 $2 Nf5 $19) 19... dxe5 (19... Qxd3 20. exd6 Rf7 21. Rfd1 $16) 20. Rae1 Qxd3 21. Rd1) 16... Bxg2 $19 {[%emt 0:11:35]} (16... dxe5 17. Bxh3 Qxh3 18. Rf2 $11) (16... Nxe5 17. Rf2 $17) 17. Kxg2 {[%emt 0:00:11] [#]} Rf5 $1 {[%emt 0:02:08] And now ...Rg5+ would win.} (17... Nxe5 $2 18. Bxe5 Qxe5 (18... dxe5 19. Rh1 $17) 19. d4 $19) (17... dxe5 18. Rh1 Qg6+ 19. Kf2 Ng4+ 20. Ke1 $14) 18. e4 {[%emt 0:04:47]} Qg6+ {[%emt 0:07:58]} 19. Kf2 {[%emt 0:01:25] [#]} Rxf3+ {[%emt 0:00:47][%mdl 512]} 20. Kxf3 {[%emt 0:00:11]} Rf8+ {[%emt 0:00:05]} (20... Nxe5+ $2 21. Bxe5 dxe5 22. Ne3 $18) 21. Ke2 {[%emt 0:00:13]} Qg2+ {[%emt 0:00:09]} (21... dxe5 $2 {too greedy.} 22. Rxf8+ (22. Bxa5 $2 Qg2+ 23. Kd1 Qxf1+ 24. Qe1 Qxd3+ 25. Qd2 Qxe4 $19) 22... Kxf8 23. Rf1+ (23. Bxa5 Qh5+ 24. Kf1 Qh1+ 25. Kf2 Qh2+ 26. Ke1 Qh1+ 27. Kf2 Qh2+ 28. Kf1 Qh1+ 29. Ke2 Qh5+ 30. Kf2 Qh2+ $11) 23... Nf7 24. Kd1 $18 (24. Bxa5 Qg4+ 25. Ke1 Qg3+ 26. Rf2 Qg1+ 27. Ke2 Qg4+ 28. Kf1 Kg8 $18)) 22. Kd1 {[%emt 0:00:05]} Qxf1+ {[%emt 0:00:50]} 23. Ne1 {[%emt 0:00:45]} Rf2 {[%emt 0:01:23]} 24. Qg5 {[%emt 0:01:28]} Qe2+ {[%emt 0:03:07]} 25. Kc1 {[%emt 0:00:06]} Nf7 {[%emt 0:01:29]} 26. Qd2 {[%emt 0:02:01]} Qf1 {[%emt 0:01:52]} ({Don't play} 26... Nfxe5 27. Qxe2 Rxe2 28. Kd1) 27. Qe3 {[%emt 0:00:29]} (27. Qd1) 27... Nfxe5 {[%emt 0:01:46]} 28. a3 {[%emt 0:00:38] Repels Nb4} Rf3 {[%emt 0:04:10]} 29. Qg5 {[%emt 0:02:27]} Rxd3 {[%emt 0:01:08]} 30. Kc2 {[%emt 0:00:43]} Qe2+ {[%emt 0:00:52]} ({Not} 30... Nxc4 31. Qxg7#) 31. Kb3 {[%emt 0:00:46]} a4+ {[%emt 0:00:41]} 32. Kxa4 {[%emt 0:00:49] [#]} Rxc3 $1 {[%emt 0:00:21][%mdl 512] White got outplayed after the opening.   Weighted Error Value: White=1.48/Black=0.27 (precise) .  Mistake:       	White=4     	---        Inaccurate:     	White=3     	---        OK:         	White=4     	Black=7      Best:        	White=2     	Black=3      Strong:       	---       	Black=3      Brilliant:      	---       	Black=1} 0-1

[Event "15th Chennai GM Open 2025"]
[Site "Chennai"]
[Date "2025.01.09"]
[Round "10.11"]
[White "Sathvik Adiga"]
[Black "Madhvendra Pratap Sharma"]
[Result "1-0"]
[ECO "C19"]
[WhiteElo "2395"]
[BlackElo "2281"]
[Annotator "TA"]
[PlyCount "79"]
[EventDate "2025.01.02"]
[EventType "swiss"]
[EventCountry "IND"]
[SourceTitle "playchess.com"]
[Source "ChessBase"]
[SourceQuality "1"]
[TimeControl "5400+30"]

{[%evp 21,78,-16,5,9,13,-4,0,0,0,0,23,0,0,-13,-13,-22,37,22,69,61,72,72,61,0,14,7,4,16,66,50,140,82,70,87,208,204,197,195,353,360,388,359,682,661,710,516,515,489,582,570,638,577,631,542,29997,29998,29998,29999,29999]} 1. e4 {[%emt 0:00:01]} e6 {[%emt 0:01:11]} 2. d4 {[%emt 0:00:09]} d5 {[%emt 0:00:22]} 3. Nc3 {[%emt 0:00:12]} Bb4 {[%emt 0:00:10]} 4. e5 {[%emt 0:00:03]} c5 {[%emt 0:00:07]} 5. a3 {[%emt 0:00:02]} Bxc3+ {[%emt 0:00:07]} 6. bxc3 {[%emt 0:00:09]} Ne7 {[%emt 0:00:06]} 7. a4 {[%emt 0:00:03]} Nbc6 {[%emt 0:00:08]} 8. Nf3 {[%emt 0:00:05]} Qa5 {[%emt 0:00:10]} 9. Bd2 {[%emt 0:01:04]} Bd7 {[%emt 0:00:19]} 10. Bb5 {[%emt 0:00:13]} Qc7 {[%emt 0:02:08]} 11. O-O {[%emt 0:06:05]} Na5 {[%emt 0:07:23]} 12. Bd3 {[%emt 0:03:00]} h6 {[%emt 0:16:42]} (12... c4 $5 13. Be2 $8 Nac6 $14) 13. h4 {[%emt 0:06:13]} b6 {[%emt 0:15:03]} 14. Re1 {[%emt 0:04:53]} Nf5 {[%emt 0:09:39]} 15. h5 {[%emt 0:07:43]} Nc6 {[%emt 0:15:42]} 16. g4 {[%emt 0:24:13]} Nfe7 {[%emt 0:00:30]} 17. Kg2 {[%emt 0:07:28]} c4 {[%emt 0:04:35]} 18. Be2 {[%emt 0:01:16]} f6 {[%emt 0:02:45]} (18... O-O-O $11) 19. Bf4 $14 {[%emt 0:05:39]} g5 {[%emt 0:06:43]} (19... f5 $11) 20. hxg6 {[%emt 0:02:37]} (20. exf6 $2 Qxf4 21. fxe7 Qxg4+ 22. Kh1 Qxh5+ (22... Nxe7 23. Ne5 $11) 23. Nh2 Qh4 $19) 20... Nxg6 {[%emt 0:00:09]} 21. Bg3 {[%emt 0:00:14]} (21. exf6 $2 Qxf4 (21... Nxf4+ $2 22. Kh1 $19) 22. Rh1 O-O $19 (22... Qxg4+ $2 23. Kf1 $19)) 21... fxe5 {[%emt 0:00:38]} 22. Nxe5 {[%emt 0:02:04]} (22. dxe5 $14 {feels stronger.} O-O-O 23. Rh1) 22... Ncxe5 $11 {[%emt 0:02:03]} 23. dxe5 {[%emt 0:00:01][%cal Oa4a5]} O-O-O {[%emt 0:01:15]} 24. Rh1 {[%emt 0:06:09]} Qb7 {[%emt 0:04:31]} (24... Rdf8 $11) 25. Qd4 {[%emt 0:07:06] and a5 would now be decisive} (25. a5 {is more complex.} d4+ 26. Bf3 Bc6 27. Bxc6 Qxc6+ 28. Qf3) 25... Ne7 {[%emt 0:00:58]} (25... Qc7 $1 $14) 26. Bh4 {[%emt 0:00:46] White is more active.} (26. a5 $142) 26... Nc6 {[%emt 0:00:49]} 27. Qd2 {[%emt 0:00:27]} Rdf8 {[%emt 0:03:26]} (27... Rdg8 $16) 28. Bf6 $18 {[%emt 0:00:50]} Rhg8 {[%emt 0:00:59]} 29. Rxh6 {[%emt 0:02:09]} (29. Qxh6 $6 Be8 $16) 29... d4 $2 {[%emt 0:01:56]} (29... Be8 {was worth a try.} 30. f4 Bg6) 30. Kg3 {[%emt 0:03:13]} (30. Bxc4 $2 {too greedy.} Nxe5+ 31. Kf1 Rxg4 $19 (31... Nxc4 $2 32. Qxd4 Qc6 33. g5 $19) (31... Nxg4 32. Bxd4 e5 33. Bxg8 $15) (31... Rxf6 $2 32. Rxf6 Qh1+ 33. Ke2 $19)) 30... d3 {[%emt 0:01:01]} 31. cxd3 {[%emt 0:03:12]} cxd3 $2 {[%emt 0:00:01]} (31... Na5 32. Qf4 (32. dxc4 Nb3 $18) 32... cxd3) 32. Qxd3 {[%emt 0:00:30]} Qc7 {[%emt 0:00:21][%cal Of8f6] Threatens to win with ...Rxf6!.} 33. Qd6 {[%emt 0:00:34]} Qxd6 {[%emt 0:00:36]} 34. exd6 {[%emt 0:00:17]} e5 {[%emt 0:01:24]} 35. Rah1 {[%emt 0:00:45]} Nd8 {[%emt 0:00:00]} 36. Rh8 {[%emt 0:01:42]} Rxh8 {[%emt 0:00:00]} 37. Rxh8 {[%emt 0:00:12]} Rxf6 {[%emt 0:00:02]} 38. Ba6+ {[%emt 0:00:06]} Kb8 {[%emt 0:00:07]} 39. Rxd8+ {[%emt 0:00:05]} Bc8 {[%emt 0:00:05]} 40. Rxc8# {[%emt 0:00:04]} 1-0